lending/lending_fUSD_20251124
["ID","MTS","AMOUNT","RATE_DAILY","PERIOD"]
[394819712,1763983855357,-720.4202794,0.00045,120]
[394819713,1763983855383,-1123.40199389,0.00045,32]
[394819714,1763983855408,-262.802492,0.00045,120]
[394819715,1763983855434,-1306.08436602,0.00045,120]
[394819716,1763983855460,-688.0,0.00045,120]
[394819717,1763983855485,-200.0,0.00045,120]
[394819718,1763983855510,-2000.0,0.00045,60]
[394819719,1763983855535,-300.0,0.00045,60]
[394819720,1763983855561,-150.0,0.00045,90]
[394819721,1763983855588,-176.0,0.00045,120]
[394819722,1763983855613,-3681.0,0.00045,120]
[394819723,1763983855638,-181.23164479,0.00045,120]
[394819724,1763983855663,-1618.78031954,0.00045,120]
[394819725,1763983855688,-5500.0,0.00045,60]
[394819726,1763983855712,-162.77,0.00045,120]
[394819727,1763983855736,-326.76891971,0.00045,120]
[394819728,1763983855760,-1000.76197475,0.00045,120]
[394819729,1763983855786,-165.12253018,0.00045,30]
[394819730,1763983855811,-300.0,0.00045,120]
[394819731,1763983855838,-150.0,0.00045,120]
[394819732,1763983855998,-150.0,0.00045,120]
[394819733,1763983856025,-860.8,0.00045,120]
[394819734,1763983856055,-420.0,0.00045,120]
[394819735,1763983856084,-150.0,0.00045,120]
[394819736,1763983856111,-152.0,0.000451,120]
[394819737,1763983856145,-252.60972698,0.000452,120]
[394819738,1763983856172,-525.0,0.0004522,120]
[394819739,1763983856203,-500.0,0.00045265,60]
[394819740,1763983856233,-1006.80152014,0.000455,120]
[394819741,1763983856266,-176.0,0.000455,120]
[394819742,1763983856298,-1100.0,0.00045539,60]
[394819743,1763983856328,-152.0,0.000456,120]
[394819744,1763983856358,-928.92648205,0.000457,120]
[394819745,1763983856391,-356.06513064,0.000458,120]
[394819746,1763983856421,-193.19426834,0.000458,120]
[394819747,1763983856452,-1133.64702518,0.000458,120]
[394819748,1763983856481,-225.18887493,0.000458,120]
[394819749,1763983856509,-327.55923434,0.000458,120]
[394819750,1763983856536,-1000.0,0.00046,30]
[394819751,1763983856564,-204.61093293,0.00046,30]
[394819752,1763983856591,-653.92349609,0.00046,30]
[394819753,1763983856621,-173.68302166,0.00046,120]
[394819754,1763983856650,-1721.98243801,0.00046,90]
[394819755,1763983856681,-650.0,0.00046,120]
[394819756,1763983856710,-300.0,0.00046,120]
[394819757,1763983856738,-3400.0,0.00046,120]
[394819758,1763983856768,-200.0,0.00046,30]
[394819759,1763983856798,-176.0,0.00046,120]
[394819760,1763983856827,-5556.79960409,0.00046,120]
[394819761,1763983856856,-837.56809942,0.00046,120]
[394819762,1763983856886,-316.27,0.00046,30]
[394819763,1763983856918,-308.885,0.00046192,90]
[394819764,1763983856947,-152.0,0.000462,120]
[394819765,1763983856977,-3681.0,0.000463,120]
[394819766,1763983857006,-500.0,0.00046361,60]
[394819767,1763983857035,-380.83549699,0.000464,120]
[394819768,1763983857064,-239.62765116,0.0004649,120]
[394819769,1763983857093,-176.0,0.000465,120]
[394819770,1763983857128,-500.0,0.00046575,33]
[394819771,1763983857157,-1847.66,0.000466,120]
[394819772,1763983857190,-1100.0,0.00046635,60]
[394819773,1763983857221,-152.0,0.000467,120]
[394819774,1763983857248,-2000.0,0.00046789,31]
[394819775,1763983857276,-1798.34679618,0.000468,120]
[394819776,1763983857304,-1739.69820492,0.000469,120]
[394819777,1763983857332,-221.3137655,0.00046952,120]
[394819778,1763983857360,-213.0,0.0004698,30]
[394819779,1763983857388,-1748.84634222,0.00047,120]
[394819780,1763983857418,-254.70135555,0.00047,120]
[394819781,1763983857461,-176.0,0.00047,120]
[394819782,1763983857500,-503.0,0.00047,120]
[394819783,1763983857542,-500.0,0.00047,120]
[394819784,1763983857582,-159.54,0.00047,30]
[394819785,1763983857620,-152.0,0.000472,120]
[394819786,1763983857659,-356.06513064,0.000472,120]
[394819787,1763983857699,-1133.64702518,0.000472,120]
[394819788,1763983857738,-225.18887493,0.000472,120]
[394819789,1763983857777,-327.55923434,0.000472,120]
[394819790,1763983857817,-1266.95557262,0.00047308,120]
[394819791,1763983857853,-223.41765528,0.00047318,120]
[394819792,1763983857888,-176.0,0.000474,120]
[394819793,1763983857924,-500.0,0.00047457,60]
[394819794,1763983857961,-1284.11924685,0.000475,120]
[394819795,1763983857994,-852.44469221,0.000475,120]
[394819796,1763983858028,-57000.0,0.000475,33]
[394819797,1763983858062,-3681.0,0.000477,120]
[394819798,1763983858096,-1100.0,0.00047731,60]
[394819799,1763983858131,-2324.09333115,0.00047777,120]
[394819800,1763983858167,-152.0,0.000478,120]
[394819801,1763983858204,-1173.79867096,0.0004788,100]
[394819802,1763983858239,-342.19864225,0.0004789,80]
[394819803,1763983858273,-176.0,0.000479,120]
[394819804,1763983858305,-1072.14244811,0.00048,120]
[394819805,1763983858336,-335.11619341,0.00048,120]
[394819806,1763983858367,-1317.38722341,0.00048,120]
[394819807,1763983858398,-1306.55058501,0.00048,120]
[394819808,1763983858430,-534.82995789,0.00048,120]
[394819809,1763983858461,-685.0,0.00048,120]
[394819810,1763983858493,-580.0,0.00048,120]
[394819811,1763983858523,-688.0,0.00048,120]
[394819812,1763983858554,-300.0,0.00048,120]
[394819813,1763983858584,-1000.0,0.00048,120]
[394819814,1763983858614,-50000.0,0.00048,33]
[394819815,1763983858646,-200.0,0.00048,30]
[394819816,1763983858682,-1816.99190705,0.00048,120]
[394819817,1763983858719,-839.87,0.00048,120]
[394819818,1763983858759,-837.56809942,0.00048,120]
[394819819,1763983858797,-500.0,0.00048,120]
[394819820,1763983858835,-150.0,0.00048,120]
[394819821,1763983858875,-150.0,0.00048,120]
[394819822,1763983858919,-700.0,0.00048,120]
[394819823,1763983858960,-150.0,0.00048,120]
[394819824,1763983858994,-1899.55889416,0.0004821,120]
[394819825,1763983859023,-800.0,0.0004822,120]
[394819826,1763983859049,-588.0,0.000483,120]
[394819827,1763983859075,-152.0,0.000483,120]
[394819828,1763983859102,-303.38279172,0.0004833,120]
[394819829,1763983859364,-176.0,0.000484,120]
[394819830,1763983859408,-152.95933653,0.000485,120]
[394819831,1763983859440,-500.0,0.00048553,60]
[394819832,1763983859470,-1133.64702518,0.000486,120]
[394819833,1763983859499,-226.49575612,0.000487,120]
[394819834,1763983859531,-1511.0621317,0.0004876,120]
[394819835,1763983859564,-1100.0,0.00048827,60]
[394819836,1763983859594,-844.85581952,0.0004888,120]
[394819837,1763983859627,-166.65335453,0.0004888,120]
[394819838,1763983859655,-513.02667779,0.000489,120]
[394819839,1763983859685,-176.0,0.000489,120]
[394819840,1763983859711,-152.0,0.000489,120]
[394819841,1763983859736,-213.0,0.0004899,30]
[394819842,1763983859763,-774.62712082,0.00049,120]
[394819843,1763983859791,-789.48055191,0.00049,30]
[394819844,1763983859823,-562.38964628,0.00049,30]
[394819845,1763983859851,-268.26949866,0.00049,120]
[394819846,1763983859882,-522.56546674,0.00049,120]
[394819847,1763983859910,-1334.98530301,0.00049,120]
[394819848,1763983859940,-951.34127924,0.00049,120]
[394819849,1763983859971,-1001.24125152,0.00049,60]
[394819850,1763983859999,-50947.0,0.00049,34]
[394819851,1763983860027,-3681.0,0.00049,120]
[394819852,1763983860056,-1895.63803867,0.00049,120]
[394819853,1763983860085,-178.87,0.00049,120]
[394819854,1763983860117,-1364.02,0.00049,30]
[394819855,1763983860150,-445.1802467,0.00049,120]
[394819856,1763983860183,-482.34787451,0.00049315,120]
[394819857,1763983860213,-759.5,0.00049315,120]
[394819858,1763983860245,-759.5,0.00049315,120]
[394819859,1763983860275,-759.5,0.00049315,120]
[394819860,1763983860308,-759.5,0.00049315,120]
[394819861,1763983860338,-759.5,0.00049315,120]
[394819862,1763983860366,-759.5,0.00049315,120]
[394819863,1763983860393,-759.5,0.00049315,120]
[394819864,1763983860424,-759.5,0.00049315,120]
[394819865,1763983860449,-759.5,0.00049315,120]
[394819866,1763983860474,-759.5,0.00049315,120]
[394819867,1763983860499,-759.5,0.00049315,120]
[394819868,1763983860524,-759.5,0.00049315,120]
[394819869,1763983860559,-759.5,0.00049315,120]
[394819870,1763983860586,-759.5,0.00049315,120]
[394819871,1763983860612,-759.5,0.00049315,120]
[394819872,1763983860638,-759.5,0.00049315,120]
[394819873,1763983860664,-759.5,0.00049315,120]
[394819874,1763983860690,-759.5,0.00049315,120]
[394819875,1763983860717,-759.5,0.00049315,120]
[394819876,1763983860745,-759.5,0.00049315,120]
[394819877,1763983860773,-759.5,0.00049315,120]
[394819878,1763983860801,-759.5,0.00049315,120]
[394819879,1763983860831,-759.5,0.00049315,120]
[394819880,1763983860860,-759.61765585,0.00049315,120]
[394819881,1763983860890,-10000.0,0.00049315,120]
[394819882,1763983860923,-176.0,0.000494,120]
[394819883,1763983860953,-152.0,0.000494,120]
[394819884,1763983860985,-731.28419389,0.000495,120]
[394819885,1763983861016,-7262.34581098,0.000495,120]
[394819886,1763983861048,-500.0,0.00049649,60]
[394819887,1763983861081,-508.62260853,0.000498,30]
[394819888,1763983861112,-5000.0,0.000499,120]
[394819889,1763983861146,-176.0,0.000499,120]
[394819890,1763983861177,-6417.76632936,0.000499,120]
[394819891,1763983861207,-1100.0,0.00049923,60]
[394819892,1763983861240,-50000.0,0.0005,50]
[394819893,1763983861268,-934.27295876,0.0005,120]
[394819894,1763983861296,-1153.38609187,0.0005,120]
[394819895,1763983861325,-1925.82324787,0.0005,120]
[394819896,1763983861353,-2098.69354865,0.0005,120]
[394819897,1763983861379,-1394.07957368,0.0005,120]
[394819898,1763983861406,-151.82119738,0.0005,120]
[394819899,1763983861436,-1086.78101323,0.0005,120]
[394819900,1763983861463,-225.48443354,0.0005,120]
[394819901,1763983861491,-584.29252313,0.0005,120]
[394819902,1763983861517,-165.40428453,0.0005,120]
[394819903,1763983861544,-500.0,0.0005,30]
[394819904,1763983861571,-2112.70109451,0.0005,30]
[394819905,1763983861596,-200.0,0.0005,120]
[394819906,1763983861623,-812.35734766,0.0005,120]
[394819907,1763983861650,-1000.0,0.0005,120]
[394819908,1763983861675,-1000.0,0.0005,90]
[394819909,1763983861703,-1338.74399115,0.0005,120]
[394819910,1763983861729,-1158.50022085,0.0005,120]
[394819911,1763983861758,-400.0,0.0005,120]
[394819912,1763983861785,-5000.0,0.0005,120]
[394819913,1763983861812,-1863.31348419,0.0005,120]
[394819914,1763983861837,-1000.0,0.0005,120]
[394819915,1763983861861,-476.4707375,0.0005,120]
[394819916,1763983861887,-595.0,0.0005,30]
[394819917,1763983861912,-512.0,0.0005,120]
[394819918,1763983861941,-150.0,0.0005,50]
[394819919,1763983861969,-500.0,0.0005,120]
[394819920,1763983861995,-500.0,0.0005,120]
[394819921,1763983862180,-150.0,0.0005,90]
[394819922,1763983862215,-200.0,0.0005,60]
[394819923,1763983862244,-1215.0,0.0005,120]
[394819924,1763983862272,-581.0,0.0005,120]
[394819925,1763983862298,-152.0,0.0005,120]
[394819926,1763983862327,-162.77,0.0005,120]
[394819927,1763983862356,-1163.0,0.0005,120]
[394819928,1763983862383,-1988.46298708,0.0005,120]
[394819929,1763983862411,-1297.0,0.0005,30]
[394819930,1763983862444,-1000.0,0.0005,120]
[394819931,1763983862475,-1133.64702518,0.0005,120]
[394819932,1763983862502,-3681.0,0.000503,120]
[394819933,1763983862529,-176.0,0.000504,120]
[394819934,1763983862556,-152.0,0.000505,120]
[394819935,1763983862581,-259.98790475,0.00050745,60]
[394819936,1763983862607,-176.0,0.000509,120]
[394819937,1763983862632,-500.0,0.00051,120]
[394819938,1763983862658,-549.86794825,0.00051,60]
[394819939,1763983862686,-2935.38131299,0.00051,120]
[394819940,1763983862711,-3000.0,0.00051,120]
[394819941,1763983862738,-1000.0,0.00051,120]
[394819942,1763983862765,-152.0,0.00051,120]
[394819943,1763983862790,-1675.13619884,0.00051,120]
[394819944,1763983862818,-1100.0,0.00051019,60]
[394819945,1763983862845,-176.0,0.000514,120]
[394819946,1763983862874,-1133.64702518,0.000515,120]
[394819947,1763983862900,-700.0,0.0005155,120]
[394819948,1763983862928,-152.0,0.000516,120]
[394819949,1763983862955,-1172.18301495,0.000517,120]
[394819950,1763983862981,-3681.0,0.000517,120]
[394819951,1763983863009,-176.0,0.000519,120]
[394819952,1763983863039,-1000.0,0.00051999,120]
[394819953,1763983863067,-576.01890786,0.00052,120]
[394819954,1763983863094,-300.0,0.00052,120]
[394819955,1763983863122,-3000.0,0.00052,120]
[394819956,1763983863150,-150.0,0.00052,50]
[394819957,1763983863177,-200.0,0.00052,60]
[394819958,1763983863204,-1139.42438387,0.00052,120]
[394819959,1763983863233,-1164.961249,0.00052,120]
[394819960,1763983863260,-500.0,0.00052055,35]
[394819961,1763983863518,-6036.41774867,0.00016923,2]
[394819962,1763983863530,-3511.94771332,0.00016923,2]
[394819963,1763983863540,-7654.1642751,0.00018,2]
[394819964,1763983863580,-1327.71463559,0.00018,2]
[394819965,1763983863596,-437.17093644,0.000179,2]
[394819966,1763983863651,-676.68628242,0.000179,2]
[394819967,1763983863660,-36.44371758,0.00018,2]
[394819968,1763983863697,500.0,0.00051955,30]
[394819969,1763983863858,150.0,0.00051755,30]
[394819970,1763983863892,150.0,0.00051755,30]
[394819971,1763983863937,-20712.43838855,0.00018,2]
[394819972,1763983863948,-27222.94472366,0.00018,2]
[394819973,1763983863959,-167566.0,0.00018,2]
[394819974,1763983863970,-29415.62555829,0.00018,2]
[394819975,1763983863982,-87697.1497802,0.00018,2]
[394819976,1763983863993,-35747.46014068,0.00018,2]
[394819977,1763983864027,200.0,0.00051755,30]
[394819978,1763983864040,-5180120.3211494,0.00018,2]
[394819979,1763983864054,-1785.71652175,0.00018,2]
[394819980,1763983865764,150.0,0.00051755,30]
[394819981,1763983865798,150.0,0.00051755,30]
[394819982,1763983865856,200.0,0.00051755,30]
[394819983,1763983865982,150.0,0.00051755,30]
[394819984,1763983866026,150.0,0.00051755,30]
[394819985,1763983866065,200.0,0.00051755,30]
[394819986,1763983866290,1551.35,0.0004695,120]
[394819987,1763983866376,150.0,0.00051755,30]
[394819988,1763983866641,200.0,0.00049999,50]
[394819989,1763983867793,151.67192107,0.00051755,30]
[394819990,1763983868492,500.0,0.00052055,30]
[394819991,1763983869073,150.0,0.00049999,50]
[394819992,1763983869191,500.0,0.00052055,30]
[394819993,1763983869743,500.0,0.00041758,60]
[394819994,1763983869816,500.0,0.00052055,30]
[394819995,1763983869870,677.48,0.0004695,120]
[394819996,1763983869941,150.0,0.00051755,30]
[394819997,1763983869990,150.0,0.00049999,50]
[394819998,1763983870116,150.0,0.00051755,30]
[394819999,1763983870258,818.41,0.000401,30]
[394820000,1763983870419,500.0,0.00052055,30]
[394820001,1763983870541,500.0,0.00042854,60]
[394820002,1763983870578,818.41,0.000416,30]
[394820003,1763983870884,818.41,0.00048,30]
[394820004,1763983871034,500.0,0.00052055,30]
[394820005,1763983871159,500.0,0.0004395,60]
[394820006,1763983871325,500.0,0.00052055,30]
[394820007,1763983871489,244.53,0.0004695,120]
[394820008,1763983871659,500.0,0.00052055,30]
[394820009,1763983871716,500.0,0.00045046,60]
[394820010,1763983871747,684.87,0.0004695,120]
[394820011,1763983871858,1127.93394532,0.0004695,120]
[394820012,1763983871956,500.0,0.00052055,30]
[394820013,1763983872304,500.0,0.00052055,30]
[394820014,1763983872565,500.0,0.00052055,30]
[394820015,1763983872755,631.3079128,0.00046142,60]
[394820016,1763983872928,500.0,0.00052055,30]
[394820017,1763983873178,500.0,0.00052055,30]
[394820018,1763983873712,500.0,0.00052055,30]
[394820019,1763983873978,500.0,0.00052055,30]
[394820020,1763983874008,157.68908016,0.00049999,50]
[394820021,1763983874199,500.0,0.00052055,30]
[394820022,1763983874414,500.0,0.00052055,30]
[394820023,1763983874480,152.06180931,0.00049999,50]
[394820024,1763983874824,500.0,0.00052055,30]
[394820025,1763983875050,500.0,0.00052055,30]
[394820026,1763983875116,518.5,0.00052055,30]
[394820027,1763983875362,1211.3,0.00042247,30]
[394820028,1763983875477,500.0,0.00052055,30]
[394820029,1763983875680,500.0,0.00052055,30]
[394820030,1763983875729,537.6845,0.00052055,30]
[394820031,1763983876094,500.0,0.00052055,30]
[394820032,1763983876295,500.0,0.00052055,30]
[394820033,1763983876375,557.5788265,0.00052055,30]
[394820034,1763983876735,500.0,0.00052055,30]
[394820035,1763983876931,500.0,0.00052055,30]
[394820036,1763983877026,578.20924308,0.00052055,30]
[394820037,1763983877376,500.0,0.00052055,30]
[394820038,1763983877540,500.0,0.00052055,30]
[394820039,1763983877631,328.58334322,0.00052055,30]
[394820040,1763983877993,500.0,0.00052055,30]
[394820041,1763983878147,537.06884642,0.00052055,30]
[394820042,1763983878587,500.0,0.00052055,30]
[394820043,1763983879196,500.0,0.00052055,30]
[394820044,1763983879809,500.0,0.00052055,30]
[394820045,1763983880437,500.0,0.00052055,30]
[394820046,1763983880738,475.70981304,0.00052055,30]
[394820047,1763983881340,1057.77691864,0.00051805,120]
[394820048,1763983884154,326.18186934,0.00052055,30]
[394820058,1763984246356,500.0,0.00017,30]
[394820059,1763984253259,166.74,0.00019178,30]
[394820060,1763984308255,165.59,0.00013456,2]
[394820061,1763984522777,157.57,0.00013699,2]
[394820066,1763984789439,1000.0,0.00022,30]
[394820071,1763985031428,-1602.62797971,0.000161,2]
[394820072,1763985031440,-241.36705537,0.000161,2]
[394820073,1763985031449,-150.0,0.000162,2]
[394820074,1763985031459,-150.0,0.000162,2]
[394820075,1763985031472,-150.0,0.000162,2]
[394820076,1763985031485,-150.0,0.000162,2]
[394820077,1763985031494,-152.93167974,0.000162,2]
[394820078,1763985031503,-195.0,0.00016265,2]
[394820079,1763985031514,-250.0,0.0001633,2]
[394820080,1763985031524,-410.60297135,0.0001633,2]
[394820081,1763985031534,-200.0,0.0001646,2]
[394820082,1763985031546,-1500.0,0.00016483,2]
[394820083,1763985031555,-339.01266589,0.00016547,2]
[394820084,1763985031565,-1200.0,0.00016586,2]
[394820085,1763985031575,-220.50918344,0.00016587,2]
[394820086,1763985031591,-466.29434677,0.00016587,2]
[394820087,1763985031602,-1501.99056459,0.00016587,2]
[394820088,1763985031618,-1795.22834089,0.00016587,2]
[394820089,1763985031628,-50.74756431,0.00016587,2]
[394820090,1763985031638,-300.0,0.00016646,2]
[394820091,1763985031647,-300.0,0.00016646,2]
[394820092,1763985031659,-435.55496294,0.00016647,2]
[394820093,1763985031670,-781.77945997,0.00016682,2]
[394820094,1763985031681,-1111.13738673,0.00016682,2]
[394820098,1763985031719,-3645.5631533,0.00016682,2]
[394820099,1763985031729,-163.75,0.00016747,2]
[394820100,1763985031738,-500.0,0.00016763,2]
[394820101,1763985031747,-257.05910787,0.000168,2]
[394820102,1763985031757,-165.59,0.0001682,2]
[394820103,1763985031766,-500.0,0.00016864,2]
[394820104,1763985031775,-500.0,0.00016864,2]
[394820105,1763985031785,-500.0,0.00016864,2]
[394820106,1763985031794,-500.0,0.00016864,2]
[394820107,1763985031804,-435.55496294,0.00016886,2]
[394820108,1763985031813,-500.0,0.00016986,2]
[394820109,1763985031822,-500.0,0.00016986,2]
[394820110,1763985031831,-500.0,0.00016986,2]
[394820112,1763985031840,-500.0,0.00016986,2]
[394820114,1763985031849,-500.0,0.00016986,2]
[394820116,1763985031858,-500.0,0.00016986,2]
[394820117,1763985031867,-500.0,0.00016986,2]
[394820118,1763985031876,-550.0,0.00016998,2]
[394820119,1763985031889,-500.0,0.00016999,2]
[394820120,1763985031898,-485.41944203,0.00016999,2]
[394820121,1763985031909,-500.0,0.00016999,2]
[394820122,1763985031918,-336.03492657,0.00016999,2]
[394820123,1763985031928,-500.0,0.00016999,2]
[394820124,1763985031938,-500.0,0.00016999,2]
[394820125,1763985031947,-500.0,0.00016999,2]
[394820126,1763985031957,-500.0,0.00016999,2]
[394820127,1763985031967,-500.0,0.00016999,2]
[394820128,1763985031977,-500.0,0.00016999,2]
[394820129,1763985031986,-500.0,0.00016999,2]
[394820130,1763985031995,-500.0,0.00016999,2]
[394820131,1763985032006,-500.0,0.00016999,2]
[394820132,1763985032015,-439.74156925,0.00016999,2]
[394820133,1763985032024,-500.0,0.00016999,2]
[394820134,1763985032033,-500.0,0.00016999,2]
[394820135,1763985032043,-500.0,0.00016999,2]
[394820136,1763985032053,-363.29164224,0.00016999,2]
[394820137,1763985032063,-500.0,0.00016999,2]
[394820138,1763985032073,-446.74332451,0.00016999,2]
[394820139,1763985032085,-500.0,0.00016999,2]
[394820140,1763985032095,-500.0,0.00016999,2]
[394820141,1763985032105,-500.0,0.00016999,2]
[394820142,1763985032115,-500.0,0.00016999,2]
[394820143,1763985032124,-294.61379061,0.00016999,2]
[394820144,1763985032133,-150.0,0.00016999,2]
[394820145,1763985032143,-151.73344126,0.00016999,2]
[394820146,1763985032155,-500.0,0.00016999,2]
[394820147,1763985032164,-150.56621767,0.00016999,2]
[394820148,1763985032174,-153.70266157,0.00016999,2]
[394820149,1763985032183,-150.0,0.00016999,2]
[394820150,1763985032192,-151.67192107,0.00016999,2]
[394820151,1763985032201,-150.0,0.00016999,2]
[394820152,1763985032210,-150.0,0.00016999,2]
[394820153,1763985032219,-250.0,0.00017,2]
[394820154,1763985032229,-339.01266589,0.00017125,2]
[394820155,1763985032238,-435.55496294,0.00017125,2]
[394820156,1763985032247,-150.0,0.00017136,2]
[394820157,1763985032256,-500.0,0.00017136,2]
[394820158,1763985032266,-150.0,0.00017136,2]
[394820159,1763985032275,-152.06180931,0.00017136,2]
[394820160,1763985032284,-1000.0,0.00017146,2]
[394820161,1763985032294,-151.0,0.00017164,2]
[394820162,1763985032303,-151.0,0.00017164,2]
[394820163,1763985032313,-151.0,0.00017164,2]
[394820164,1763985032322,-151.0,0.00017164,2]
[394820165,1763985032331,-151.0,0.00017164,2]
[394820166,1763985032341,-151.0,0.00017164,2]
[394820167,1763985032350,-151.0,0.00017164,2]
[394820168,1763985032359,-151.0,0.00017164,2]
[394820169,1763985032368,-171.71735905,0.00017164,2]
[394820170,1763985032378,-601.70480856,0.00017173,2]
[394820171,1763985032387,-31905.92,0.00017174,2]
[394820172,1763985032396,-291.0,0.00017184,2]
[394820173,1763985032406,-371.41346353,0.00017219,2]
[394820174,1763985032416,-2076.68,0.00017225,2]
[394820175,1763985032425,-200.72643007,0.00017273,2]
[394820176,1763985032434,-500.0,0.00017273,2]
[394820177,1763985032443,-200.0,0.00017273,2]
[394820178,1763985032453,-500.0,0.0001741,2]
[394820179,1763985032476,-500.0,0.00017547,2]
[394820180,1763985032486,-374.47230051,0.00017684,2]
[394820181,1763985032496,-250.0,0.0001782,2]
[394820182,1763985032507,-195.0,0.0001782,2]
[394820183,1763985032516,-250.0,0.0001782,2]
[394820184,1763985032527,-300.0,0.0001782,2]
[394820185,1763985032538,-195.0,0.0001782,2]
[394820186,1763985032548,-166.5,0.00017824,2]
[394820187,1763985032558,-1624.26703566,0.00017899,2]
[394820188,1763985032567,-1624.26703566,0.00017899,2]
[394820189,1763985032577,-1624.26703566,0.00017899,2]
[394820190,1763985032587,-1624.26703566,0.00017899,2]
[394820191,1763985032596,-1624.26703566,0.00017899,2]
[394820192,1763985032606,-1624.26703566,0.000179,2]
[394820193,1763985032616,-1624.26703566,0.000179,2]
[394820194,1763985032625,-1624.26703566,0.000179,2]
[394820195,1763985032635,-1624.26703566,0.000179,2]
[394820196,1763985032644,-10000.0,0.000179,2]
[394820197,1763985032654,-638.63195679,0.000179,2]
[394820198,1763985032664,-1624.26703566,0.000179,2]
[394820199,1763985032673,-26756.56844355,0.000179,2]
[394820200,1763985032683,-162.78971239,0.000179,2]
[394820201,1763985032693,-1030.66392286,0.000179,2]
[394820202,1763985032703,-1924.29151021,0.000179,2]
[394820203,1763985032712,-163.75,0.00017944,2]
[394820204,1763985032722,-108146.0,0.00017973,2]
[394820205,1763985032732,-171.99582772,0.00017973,2]
[394820206,1763985032742,-500.67069669,0.00017973,2]
[394820207,1763985032752,-500.0,0.00017973,2]
[394820208,1763985032761,-500.0,0.00017973,2]
[394820209,1763985032771,-500.0,0.00017973,2]
[394820210,1763985032782,-166.51234067,0.00017973,2]
[394820211,1763985032792,-174.11781363,0.00017973,2]
[394820212,1763985032801,-500.0,0.00017973,2]
[394820213,1763985032811,-500.0,0.00017973,2]
[394820214,1763985032820,-500.0,0.00017973,2]
[394820215,1763985032829,-171.14852496,0.00017973,2]
[394820216,1763985032839,-500.0,0.00017973,2]
[394820217,1763985032848,-504.78552144,0.00017973,2]
[394820218,1763985032857,-335.51242062,0.00017973,2]
[394820219,1763985032866,-500.0,0.00017973,2]
[394820220,1763985032875,-500.0,0.00017973,2]
[394820221,1763985032885,-500.0,0.00017973,2]
[394820222,1763985032895,-230.55253449,0.00017973,2]
[394820223,1763985032905,-500.0,0.00017973,2]
[394820224,1763985032915,-500.0,0.00017973,2]
[394820225,1763985032924,-500.0,0.00017973,2]
[394820226,1763985032934,-500.0,0.00017973,2]
[394820227,1763985032943,-958.18441075,0.00017982,2]
[394820228,1763985032953,-300.0,0.00017985,2]
[394820229,1763985032962,-527.74,0.00017989,3]
[394820230,1763985032971,-500.0,0.00017999,2]
[394820231,1763985032980,-500.0,0.00017999,2]
[394820232,1763985032990,-500.0,0.00017999,2]
[394820233,1763985033000,-500.0,0.00017999,2]
[394820234,1763985033010,-500.0,0.00017999,2]